[Event "*** Titled Tuesday Blitz"]
[Site "Chess.com"]
[Date "2020.04.14"]
[Round "7"]
[White "lelya96"]
[Black "DucksParadise"]
[Result "0-1"]
[WhiteElo "2235"]
[BlackElo "2111"]
[TimeControl "180+1"]
[EndTime "11:13:40 PDT"]
[Termination "DucksParadise won on time"]

1. e4 {[%clk 0:00:32.5]} 1... c5 {[%clk 0:02:56.7]} 2. Nf3 {[%clk 0:00:31.7]}
2... d6 {[%clk 0:02:56.4]} 3. d4 {[%clk 0:00:31.3]} 3... cxd4 {[%clk 0:02:57.3]}
4. Nxd4 {[%clk 0:00:32.2]} 4... Nf6 {[%clk 0:02:57.7]} 5. Nc3 {[%clk 0:00:33.1]}
5... a6 {[%clk 0:02:57.3]} 6. Be2 {[%clk 0:00:33.5]} 6... e6 {[%clk 0:02:55.9]}
7. O-O {[%clk 0:00:32]} 7... Be7 {[%clk 0:02:55.1]} 8. Kh1 {[%clk 0:00:31.5]}
8... O-O {[%clk 0:02:54.5]} 9. f4 {[%clk 0:00:31.8]} 9... Nc6 {[%clk 0:02:54.6]}
10. Be3 {[%clk 0:00:31.5]} 10... Nxd4 {[%clk 0:02:54.6]} 11. Bxd4 {[%clk
0:00:31.2]} 11... e5 {[%clk 0:02:55.5]} 12. Be3 {[%clk 0:00:27.7]} 12... Bd7
{[%clk 0:02:38.8]} 13. Qe1 {[%clk 0:00:26.6]} 13... Bc6 {[%clk 0:02:34.4]} 14.
Bd3 {[%clk 0:00:26.6]} 14... d5 {[%clk 0:02:20.2]} 15. exd5 {[%clk 0:00:21.3]}
15... Nxd5 {[%clk 0:02:21.1]} 16. fxe5 {[%clk 0:00:20.4]} 16... Nxc3 {[%clk
0:01:50.7]} 17. bxc3 {[%clk 0:00:19.6]} 17... Qd5 {[%clk 0:01:48.3]} 18. Qf2
{[%clk 0:00:18.2]} 18... b5 {[%clk 0:01:43.3]} 19. Rad1 {[%clk 0:00:17.3]} 19...
Qxe5 {[%clk 0:01:39.8]} 20. Bd4 {[%clk 0:00:17.1]} 20... Qh5 {[%clk 0:01:29.9]}
21. Qg1 {[%clk 0:00:16.1]} 21... Bd6 {[%clk 0:01:20.9]} 22. Rf5 {[%clk
0:00:14.8]} 22... Qh6 {[%clk 0:01:18.7]} 23. Be3 {[%clk 0:00:13.4]} 23... Qh4
{[%clk 0:01:11.3]} 24. Rdf1 {[%clk 0:00:11.6]} 24... Rae8 {[%clk 0:01:06.1]} 25.
Bg5 {[%clk 0:00:11.3]} 25... Qg4 {[%clk 0:00:58.9]} 26. Bc1 {[%clk 0:00:05.6]}
26... g6 {[%clk 0:00:54.6]} 27. Rg5 {[%clk 0:00:05.7]} 27... Qd7 {[%clk
0:00:51.8]} 28. Qd4 {[%clk 0:00:05]} 28... Qe6 {[%clk 0:00:43]} 29. c4 {[%clk
0:00:04.6]} 29... Be5 {[%clk 0:00:34.9]} 0-1

[Event "*** Titled Tuesday Blitz"]
[Site "Chess.com"]
[Date "2020.04.14"]
[Round "7"]
[White "MiroVlasenko"]
[Black "GM_RobertoMogranzini"]
[Result "0-1"]
[WhiteElo "2659"]
[BlackElo "2533"]
[TimeControl "180+1"]
[EndTime "11:13:41 PDT"]
[Termination "GM_RobertoMogranzini won by resignation"]

1. e4 {[%clk 0:03:00.9]} 1... d5 {[%clk 0:03:00]} 2. exd5 {[%clk 0:02:59.9]}
2... Qxd5 {[%clk 0:03:00.9]} 3. Nc3 {[%clk 0:03:00.3]} 3... Qd8 {[%clk
0:03:01.6]} 4. Nf3 {[%clk 0:02:59.7]} 4... Nf6 {[%clk 0:03:02.5]} 5. Bc4 {[%clk
0:02:59.1]} 5... a6 {[%clk 0:02:59.2]} 6. O-O {[%clk 0:02:57.5]} 6... b5 {[%clk
0:02:58.6]} 7. Bb3 {[%clk 0:02:57.1]} 7... c5 {[%clk 0:02:58.6]} 8. d3 {[%clk
0:02:56.9]} 8... e6 {[%clk 0:02:58.4]} 9. a4 {[%clk 0:02:54.7]} 9... b4 {[%clk
0:02:58.1]} 10. Ne4 {[%clk 0:02:54.5]} 10... Nxe4 {[%clk 0:02:57.1]} 11. dxe4
{[%clk 0:02:54.3]} 11... Qxd1 {[%clk 0:02:57.2]} 12. Rxd1 {[%clk 0:02:54.1]}
12... Nc6 {[%clk 0:02:54.5]} 13. a5 {[%clk 0:02:48.9]} 13... Bb7 {[%clk
0:02:49.2]} 14. Ba4 {[%clk 0:02:45.4]} 14... Rc8 {[%clk 0:02:44.7]} 15. Ne5
{[%clk 0:02:40]} 15... f6 {[%clk 0:02:42.5]} 16. Rd7 {[%clk 0:02:25.6]} 16...
Ba8 {[%clk 0:02:25]} 17. Ra7 {[%clk 0:02:25.5]} 17... fxe5 {[%clk 0:01:36]} 18.
Rxa8 {[%clk 0:02:25.4]} 18... Rxa8 {[%clk 0:01:36.9]} 19. Bxc6+ {[%clk
0:02:25.3]} 19... Kd8 {[%clk 0:01:37.8]} 20. Bxa8 {[%clk 0:02:19.7]} 20... Kc7
{[%clk 0:01:38.2]} 21. Bg5 {[%clk 0:01:38.7]} 21... Bd6 {[%clk 0:01:37.2]} 22.
Bd5 {[%clk 0:01:34.3]} 22... exd5 {[%clk 0:01:37]} 23. exd5 {[%clk 0:01:35.2]}
23... e4 {[%clk 0:01:31.9]} 24. Re1 {[%clk 0:01:31.2]} 24... Be5 {[%clk
0:01:17.9]} 25. Rxe4 {[%clk 0:01:21.6]} 25... Kd6 {[%clk 0:01:13.4]} 26. b3
{[%clk 0:01:12.7]} 26... Kxd5 {[%clk 0:01:12.1]} 27. f3 {[%clk 0:01:11.9]} 27...
h6 {[%clk 0:01:01.3]} 28. Be3 {[%clk 0:01:11.4]} 28... Rc8 {[%clk 0:00:52.1]}
29. Kf1 {[%clk 0:01:08.6]} 29... g5 {[%clk 0:00:45]} 30. Ke2 {[%clk 0:01:08.2]}
30... c4 {[%clk 0:00:41.9]} 31. bxc4+ {[%clk 0:01:00.6]} 31... Rxc4 {[%clk
0:00:42.8]} 32. Rxc4 {[%clk 0:00:53.4]} 32... Kxc4 {[%clk 0:00:43.7]} 33. Bb6
{[%clk 0:00:51.4]} 33... Bxh2 {[%clk 0:00:42.1]} 34. Bd8 {[%clk 0:00:47.9]}
34... Bf4 {[%clk 0:00:40.1]} 35. g4 {[%clk 0:00:46.6]} 35... Kc3 {[%clk
0:00:39]} 36. Kd1 {[%clk 0:00:46.7]} 36... Kc4 {[%clk 0:00:39.1]} 37. Bf6 {[%clk
0:00:45.4]} 37... Kb5 {[%clk 0:00:39.3]} 38. Bg7 {[%clk 0:00:45.5]} 38... Kxa5
{[%clk 0:00:39.7]} 39. Bxh6 {[%clk 0:00:45.9]} 39... Kb5 {[%clk 0:00:40.3]} 40.
Bg7 {[%clk 0:00:43.7]} 40... a5 {[%clk 0:00:40.7]} 41. Bf6 {[%clk 0:00:42.6]}
41... a4 {[%clk 0:00:40.6]} 42. Ke2 {[%clk 0:00:42.9]} 42... Kc4 {[%clk
0:00:39.8]} 43. Kd1 {[%clk 0:00:43.3]} 43... a3 {[%clk 0:00:37.1]} 44. Ke2
{[%clk 0:00:43]} 44... a2 {[%clk 0:00:34.5]} 45. Kd1 {[%clk 0:00:41.3]} 45...
Be3 {[%clk 0:00:34]} 0-1

[Event "*** Titled Tuesday Blitz"]
[Site "Chess.com"]
[Date "2020.04.14"]
[Round "7"]
[White "indfraeng"]
[Black "steepedgames"]
[Result "0-1"]
[WhiteElo "2250"]
[BlackElo "2432"]
[TimeControl "180+1"]
[EndTime "11:13:41 PDT"]
[Termination "steepedgames won by checkmate"]

1. d4 {[%clk 0:03:00.9]} 1... f5 {[%clk 0:02:58.4]} 2. Nc3 {[%clk 0:03:00.1]}
2... Nf6 {[%clk 0:02:59]} 3. Bg5 {[%clk 0:02:59.5]} 3... d5 {[%clk 0:02:59.1]}
4. Bxf6 {[%clk 0:02:58.1]} 4... exf6 {[%clk 0:02:58.1]} 5. e3 {[%clk 0:02:57]}
5... c6 {[%clk 0:02:58.4]} 6. Bd3 {[%clk 0:02:56.5]} 6... Bd6 {[%clk 0:02:58.2]}
7. Qf3 {[%clk 0:02:55.1]} 7... g6 {[%clk 0:02:57.6]} 8. Nge2 {[%clk 0:02:54.1]}
8... Na6 {[%clk 0:02:43.7]} 9. a3 {[%clk 0:02:49.5]} 9... b5 {[%clk 0:02:38.4]}
10. Nxb5 {[%clk 0:02:30.6]} 10... cxb5 {[%clk 0:02:32.8]} 11. Bxb5+ {[%clk
0:02:30.4]} 11... Ke7 {[%clk 0:02:13.2]} 12. Qxd5 {[%clk 0:02:26.1]} 12... Be6
{[%clk 0:02:09.2]} 13. Qb7+ {[%clk 0:02:19.1]} 13... Nc7 {[%clk 0:02:09.2]} 14.
c4 {[%clk 0:01:47.4]} 14... a6 {[%clk 0:02:01.3]} 15. Ba4 {[%clk 0:01:29]} 15...
Rb8 {[%clk 0:01:57.1]} 16. Qf3 {[%clk 0:01:28.7]} 16... Bxc4 {[%clk 0:01:54.8]}
17. O-O {[%clk 0:01:24.9]} 17... Rxb2 {[%clk 0:01:52.9]} 18. Ng3 {[%clk
0:01:24.4]} 18... Bxf1 {[%clk 0:01:45.5]} 19. Rxf1 {[%clk 0:01:22.1]} 19... Bxg3
{[%clk 0:01:43.8]} 20. hxg3 {[%clk 0:01:21.5]} 20... Qd5 {[%clk 0:01:43.6]} 21.
Qf4 {[%clk 0:01:21]} 21... Ne6 {[%clk 0:01:43]} 22. Qh4 {[%clk 0:01:20.1]} 22...
h5 {[%clk 0:01:41.4]} 23. Rc1 {[%clk 0:01:18.5]} 23... g5 {[%clk 0:01:40.2]} 24.
Qh3 {[%clk 0:01:18.5]} 24... g4 {[%clk 0:01:28.8]} 25. Qh4 {[%clk 0:01:18.1]}
25... Ng5 {[%clk 0:01:26.7]} 26. Rc7+ {[%clk 0:01:13.9]} 26... Kd8 {[%clk
0:01:22.7]} 27. Rc5 {[%clk 0:01:09.3]} 27... Qe4 {[%clk 0:01:13.7]} 28. Bc6
{[%clk 0:01:02.3]} 28... Qb1+ {[%clk 0:01:07.9]} 29. Kh2 {[%clk 0:01:02.2]}
29... Rc2 {[%clk 0:01:07.7]} 30. Rd5+ {[%clk 0:01:01.1]} 30... Kc7 {[%clk
0:01:04.9]} 31. Bd7 {[%clk 0:01:01.2]} 31... Rc1 {[%clk 0:01:03]} 32. Rc5+
{[%clk 0:00:56.1]} 32... Rxc5 {[%clk 0:01:03.4]} 33. dxc5 {[%clk 0:00:57]} 33...
Kxd7 {[%clk 0:01:03.9]} 34. c6+ {[%clk 0:00:54.7]} 34... Kxc6 {[%clk 0:01:03.9]}
35. a4 {[%clk 0:00:53.8]} 35... Qe4 {[%clk 0:00:59.8]} 36. f4 {[%clk 0:00:41]}
36... Qxe3 {[%clk 0:00:52]} 37. a5 {[%clk 0:00:37.5]} 37... Qd2 {[%clk
0:00:45.4]} 38. Kh1 {[%clk 0:00:35.1]} 38... Kd5 {[%clk 0:00:41.1]} 39. Kh2
{[%clk 0:00:32.3]} 39... Ke4 {[%clk 0:00:40]} 40. Kh1 {[%clk 0:00:29.1]} 40...
Rh7 {[%clk 0:00:40]} 41. Kh2 {[%clk 0:00:29]} 41... Nf3+ {[%clk 0:00:40.2]} 42.
Kh1 {[%clk 0:00:28.3]} 42... Qe1# {[%clk 0:00:34.2]} 0-1

[Event "*** Titled Tuesday Blitz"]
[Site "Chess.com"]
[Date "2020.04.14"]
[Round "7"]
[White "Taran2004"]
[Black "Eloist"]
[Result "0-1"]
[WhiteElo "1992"]
[BlackElo "2261"]
[TimeControl "180+1"]
[EndTime "11:13:41 PDT"]
[Termination "Eloist won by resignation"]

1. e4 {[%clk 0:03:00.9]} 1... e6 {[%clk 0:02:48.9]} 2. d4 {[%clk 0:02:59.9]}
2... d5 {[%clk 0:02:48.8]} 3. Nd2 {[%clk 0:03:00]} 3... Nf6 {[%clk 0:02:48.8]}
4. e5 {[%clk 0:02:59.6]} 4... Nfd7 {[%clk 0:02:48.3]} 5. Bd3 {[%clk 0:03:00.3]}
5... c5 {[%clk 0:02:48.3]} 6. c3 {[%clk 0:03:00.6]} 6... b6 {[%clk 0:02:47.8]}
7. Ne2 {[%clk 0:02:57.6]} 7... Ba6 {[%clk 0:02:47]} 8. Bxa6 {[%clk 0:02:56.9]}
8... Nxa6 {[%clk 0:02:47.1]} 9. O-O {[%clk 0:02:57.8]} 9... b5 {[%clk
0:02:46.1]} 10. f4 {[%clk 0:02:57.8]} 10... Qb6 {[%clk 0:02:43.8]} 11. Nf3
{[%clk 0:02:56]} 11... g6 {[%clk 0:02:41.5]} 12. Be3 {[%clk 0:02:54.4]} 12... c4
{[%clk 0:02:34.2]} 13. g4 {[%clk 0:02:53.1]} 13... h5 {[%clk 0:02:26.2]} 14. h3
{[%clk 0:02:52.7]} 14... hxg4 {[%clk 0:02:26]} 15. hxg4 {[%clk 0:02:52.7]} 15...
Nc7 {[%clk 0:02:06.7]} 16. Qe1 {[%clk 0:02:51.4]} 16... O-O-O {[%clk 0:02:00.4]}
17. a4 {[%clk 0:02:48]} 17... b4 {[%clk 0:01:53.3]} 18. a5 {[%clk 0:02:44.2]}
18... Qb5 {[%clk 0:01:47.4]} 19. Nd2 {[%clk 0:02:40]} 19... b3 {[%clk
0:01:38.5]} 20. Qg3 {[%clk 0:02:35.1]} 20... Be7 {[%clk 0:01:37.1]} 21. Kg2
{[%clk 0:02:32.5]} 21... Kb7 {[%clk 0:01:22.2]} 22. Rh1 {[%clk 0:02:31.1]} 22...
Rxh1 {[%clk 0:01:12.6]} 23. Kxh1 {[%clk 0:02:30.4]} 23... Rh8+ {[%clk
0:01:10.1]} 24. Kg2 {[%clk 0:02:30.8]} 24... Nb8 {[%clk 0:00:46.9]} 25. f5
{[%clk 0:02:29.5]} 25... Nc6 {[%clk 0:00:39.6]} 26. f6 {[%clk 0:02:22.6]} 26...
Bf8 {[%clk 0:00:27.6]} 27. Nf4 {[%clk 0:02:21]} 27... Nxa5 {[%clk 0:00:21.3]}
28. Nf3 {[%clk 0:02:17.4]} 28... Nc6 {[%clk 0:00:20]} 29. Ng5 {[%clk 0:02:17.2]}
29... Nd8 {[%clk 0:00:18.4]} 30. Nfh3 {[%clk 0:02:12.2]} 30... a5 {[%clk
0:00:17.1]} 31. Qf2 {[%clk 0:02:02.4]} 31... a4 {[%clk 0:00:14.9]} 32. Bc1
{[%clk 0:02:00.9]} 32... Kb6 {[%clk 0:00:07.9]} 33. Ra3 {[%clk 0:02:00.1]} 33...
Na6 {[%clk 0:00:05.7]} 34. Ra1 {[%clk 0:01:58.7]} 34... Nc7 {[%clk 0:00:05.3]}
35. Nf4 {[%clk 0:01:57.4]} 35... Kb7 {[%clk 0:00:04.4]} 36. Kg3 {[%clk
0:01:45.9]} 36... Qa6 {[%clk 0:00:04]} 37. Nxf7 {[%clk 0:01:42.6]} 37... Nxf7
{[%clk 0:00:03.3]} 38. Nxg6 {[%clk 0:01:43]} 38... Rg8 {[%clk 0:00:03.3]} 39.
Nxf8 {[%clk 0:01:43.6]} 39... Rxf8 {[%clk 0:00:03.7]} 40. g5 {[%clk 0:01:43.4]}
40... Rg8 {[%clk 0:00:03.7]} 41. Kg4 {[%clk 0:01:43]} 41... Nh6+ {[%clk
0:00:03.2]} 42. Kh5 {[%clk 0:01:40.3]} 42... Nf5 {[%clk 0:00:04.1]} 43. g6
{[%clk 0:01:40.6]} 43... Qa8 {[%clk 0:00:04.4]} 44. g7 {[%clk 0:01:34.3]} 44...
Qe8+ {[%clk 0:00:03.3]} 45. Kg5 {[%clk 0:01:32.7]} 45... Nxg7 {[%clk 0:00:03.3]}
46. fxg7 {[%clk 0:01:28.5]} 46... Rxg7+ {[%clk 0:00:04.2]} 47. Kh4 {[%clk
0:01:29]} 47... Qh8+ {[%clk 0:00:03.9]} 0-1

[Event "*** Titled Tuesday Blitz"]
[Site "Chess.com"]
[Date "2020.04.14"]
[Round "7"]
[White "mrkvoz"]
[Black "OhanyanEminChess"]
[Result "1-0"]
[WhiteElo "2779"]
[BlackElo "2545"]
[TimeControl "180+1"]
[EndTime "11:13:46 PDT"]
[Termination "mrkvoz won on time"]

1. e4 {[%clk 0:03:00.9]} 1... e5 {[%clk 0:02:57.6]} 2. Nf3 {[%clk 0:03:00.3]}
2... Nc6 {[%clk 0:02:54.5]} 3. d4 {[%clk 0:03:00.7]} 3... exd4 {[%clk
0:02:53.9]} 4. Nxd4 {[%clk 0:03:01.6]} 4... Nf6 {[%clk 0:02:53.7]} 5. Nxc6
{[%clk 0:03:01.8]} 5... bxc6 {[%clk 0:02:53]} 6. Bd3 {[%clk 0:03:02.3]} 6... d5
{[%clk 0:02:46.2]} 7. exd5 {[%clk 0:03:03.2]} 7... cxd5 {[%clk 0:02:47]} 8. O-O
{[%clk 0:03:03.4]} 8... Be7 {[%clk 0:02:35.2]} 9. c4 {[%clk 0:03:03.1]} 9... O-O
{[%clk 0:02:25.3]} 10. cxd5 {[%clk 0:03:02.7]} 10... Nxd5 {[%clk 0:02:26.2]} 11.
Qf3 {[%clk 0:03:02.7]} 11... Be6 {[%clk 0:02:23.3]} 12. Rd1 {[%clk 0:03:02.3]}
12... c6 {[%clk 0:02:21.3]} 13. Nc3 {[%clk 0:03:02.4]} 13... Qb6 {[%clk
0:02:18.7]} 14. Be4 {[%clk 0:03:02.2]} 14... Rad8 {[%clk 0:01:42]} 15. Nxd5
{[%clk 0:02:44.2]} 15... cxd5 {[%clk 0:01:41.9]} 16. Bd3 {[%clk 0:02:34.1]}
16... Bf6 {[%clk 0:01:35.4]} 17. Rb1 {[%clk 0:02:32.4]} 17... Rfe8 {[%clk
0:01:24.2]} 18. Bd2 {[%clk 0:02:23.4]} 18... Bd4 {[%clk 0:01:15.7]} 19. a4
{[%clk 0:02:07.9]} 19... g6 {[%clk 0:01:13.2]} 20. Bb5 {[%clk 0:02:01.4]} 20...
Bd7 {[%clk 0:01:06.3]} 21. Bg5 {[%clk 0:01:52]} 21... f6 {[%clk 0:00:47.4]} 22.
Qxd5+ {[%clk 0:01:16.2]} 22... Be6 {[%clk 0:00:47.2]} 23. Qc6 {[%clk 0:01:02]}
23... fxg5 {[%clk 0:00:20.4]} 24. Qxb6 {[%clk 0:00:57.6]} 24... Bxb6 {[%clk
0:00:21.3]} 25. Bxe8 {[%clk 0:00:56.7]} 25... Rxe8 {[%clk 0:00:22.2]} 26. b4
{[%clk 0:00:55.3]} 26... Rf8 {[%clk 0:00:21.9]} 27. Rd2 {[%clk 0:00:53.7]} 27...
Rb8 {[%clk 0:00:11.3]} 28. Re1 {[%clk 0:00:51.4]} 28... Kf7 {[%clk 0:00:10.3]}
29. Rde2 {[%clk 0:00:44.9]} 29... Re8 {[%clk 0:00:05.4]} 30. a5 {[%clk
0:00:44.7]} 30... Bd4 {[%clk 0:00:05.3]} 31. Rc2 {[%clk 0:00:42.1]} 31... Kf6
{[%clk 0:00:03.3]} 32. Rc6 {[%clk 0:00:41.3]} 32... Re7 {[%clk 0:00:02]} 33. Re4
{[%clk 0:00:35.4]} 1-0

[Event "*** Titled Tuesday Blitz"]
[Site "Chess.com"]
[Date "2020.04.14"]
[Round "7"]
[White "shyam"]
[Black "ehrenfeld"]
[Result "1-0"]
[WhiteElo "2634"]
[BlackElo "2471"]
[TimeControl "180+1"]
[EndTime "11:13:48 PDT"]
[Termination "shyam won by resignation"]

1. e4 {[%clk 0:03:00.9]} 1... e5 {[%clk 0:02:54.2]} 2. Nf3 {[%clk 0:03:00.2]}
2... Nc6 {[%clk 0:02:53.3]} 3. Bb5 {[%clk 0:03:00.2]} 3... a6 {[%clk 0:02:52.7]}
4. Ba4 {[%clk 0:03:00.7]} 4... Nf6 {[%clk 0:02:52]} 5. Qe2 {[%clk 0:03:01.2]}
5... Be7 {[%clk 0:02:42.9]} 6. O-O {[%clk 0:02:58.6]} 6... O-O {[%clk
0:02:40.8]} 7. c3 {[%clk 0:02:57.3]} 7... b5 {[%clk 0:02:40.3]} 8. Bc2 {[%clk
0:02:57.2]} 8... d5 {[%clk 0:02:40.4]} 9. d3 {[%clk 0:02:57.7]} 9... h6 {[%clk
0:02:39]} 10. Rd1 {[%clk 0:02:56.3]} 10... Bb7 {[%clk 0:02:36.9]} 11. Nbd2
{[%clk 0:02:56.5]} 11... Re8 {[%clk 0:02:36.3]} 12. Nf1 {[%clk 0:02:57]} 12...
Bf8 {[%clk 0:02:36]} 13. Ng3 {[%clk 0:02:57.7]} 13... g6 {[%clk 0:02:35.4]} 14.
h3 {[%clk 0:02:49.2]} 14... Bg7 {[%clk 0:02:35.3]} 15. a4 {[%clk 0:02:49.3]}
15... Qd7 {[%clk 0:02:34.9]} 16. exd5 {[%clk 0:02:46.4]} 16... Nxd5 {[%clk
0:02:29.4]} 17. Ne4 {[%clk 0:02:47.3]} 17... Nf4 {[%clk 0:02:22]} 18. Qf1 {[%clk
0:02:36.1]} 18... Qf5 {[%clk 0:02:08.8]} 19. Nc5 {[%clk 0:02:25.5]} 19... Bc8
{[%clk 0:01:56.1]} 20. axb5 {[%clk 0:02:25.4]} 20... Nxh3+ {[%clk 0:01:36.9]}
21. gxh3 {[%clk 0:02:24.8]} 21... Qxf3 {[%clk 0:01:36.6]} 22. Qg2 {[%clk
0:02:13.2]} 22... Qxg2+ {[%clk 0:01:29.9]} 23. Kxg2 {[%clk 0:02:14.1]} 23... Nb8
{[%clk 0:01:27.2]} 24. Be3 {[%clk 0:01:56.9]} 24... a5 {[%clk 0:01:03.5]} 25. b4
{[%clk 0:01:52.5]} 25... a4 {[%clk 0:01:03]} 26. Rxa4 {[%clk 0:01:45.1]} 26...
Rxa4 {[%clk 0:01:02.3]} 27. Bxa4 {[%clk 0:01:46]} 27... Rd8 {[%clk 0:01:00.4]}
28. Bb3 {[%clk 0:01:36]} 28... Rd6 {[%clk 0:00:55.3]} 29. Ra1 {[%clk 0:01:35.4]}
29... Rd8 {[%clk 0:00:49.8]} 30. Ra8 {[%clk 0:01:35.2]} 30... Bf5 {[%clk
0:00:45.4]} 31. Na6 {[%clk 0:01:26.4]} 31... Nc6 {[%clk 0:00:44]} 32. Rxd8+
{[%clk 0:01:22.5]} 32... Nxd8 {[%clk 0:00:43.4]} 33. Bc4 {[%clk 0:01:01.2]}
33... c6 {[%clk 0:00:34.6]} 34. b6 {[%clk 0:00:59.1]} 34... e4 {[%clk
0:00:25.6]} 35. d4 {[%clk 0:00:55]} 35... Bc8 {[%clk 0:00:21.6]} 36. Nc5 {[%clk
0:00:54.4]} 36... Kf8 {[%clk 0:00:16.3]} 37. Bf4 {[%clk 0:00:53.4]} 37... Ke7
{[%clk 0:00:15.2]} 38. Bc7 {[%clk 0:00:52.9]} 38... Nb7 {[%clk 0:00:12.9]} 39.
Ba6 {[%clk 0:00:51.4]} 39... Nxc5 {[%clk 0:00:12.5]} 40. Bxc8 {[%clk 0:00:52.3]}
40... Ne6 {[%clk 0:00:03.5]} 1-0

[Event "*** Titled Tuesday Blitz"]
[Site "Chess.com"]
[Date "2020.04.14"]
[Round "7"]
[White "anon219"]
[Black "Muguet7"]
[Result "1-0"]
[WhiteElo "2799"]
[BlackElo "2463"]
[TimeControl "180+1"]
[EndTime "11:13:48 PDT"]
[Termination "anon219 won by resignation"]

1. e4 {[%clk 0:03:00.9]} 1... c5 {[%clk 0:02:59.2]} 2. Nf3 {[%clk 0:03:00.4]}
2... d6 {[%clk 0:02:59.2]} 3. d4 {[%clk 0:03:00]} 3... cxd4 {[%clk 0:02:59]} 4.
Qxd4 {[%clk 0:03:00.9]} 4... Nc6 {[%clk 0:02:58.6]} 5. Bb5 {[%clk 0:03:00.4]}
5... Bd7 {[%clk 0:02:58.8]} 6. Bxc6 {[%clk 0:03:00.8]} 6... Bxc6 {[%clk
0:02:58.8]} 7. Nc3 {[%clk 0:03:01.5]} 7... e5 {[%clk 0:02:58.6]} 8. Qd3 {[%clk
0:03:00.8]} 8... h6 {[%clk 0:02:58.5]} 9. O-O {[%clk 0:03:00.9]} 9... Nf6 {[%clk
0:02:58.7]} 10. Nd2 {[%clk 0:03:00.8]} 10... Be7 {[%clk 0:02:57]} 11. Nc4 {[%clk
0:03:00.6]} 11... O-O {[%clk 0:02:53.5]} 12. Rd1 {[%clk 0:03:00.3]} 12... Rc8
{[%clk 0:02:44.3]} 13. a4 {[%clk 0:02:56.4]} 13... Qc7 {[%clk 0:02:36.8]} 14.
Ne3 {[%clk 0:02:53.8]} 14... Rfd8 {[%clk 0:02:29.9]} 15. Bd2 {[%clk 0:02:54]}
15... b6 {[%clk 0:02:15.5]} 16. Be1 {[%clk 0:02:40.2]} 16... Qb7 {[%clk
0:02:14.6]} 17. Ncd5 {[%clk 0:02:38.7]} 17... Nxd5 {[%clk 0:02:07]} 18. exd5
{[%clk 0:02:36.9]} 18... Bd7 {[%clk 0:02:06.8]} 19. c4 {[%clk 0:02:35.8]} 19...
Bg5 {[%clk 0:02:04.1]} 20. b3 {[%clk 0:02:27.3]} 20... g6 {[%clk 0:02:01.2]} 21.
Ra2 {[%clk 0:02:19]} 21... f5 {[%clk 0:02:01.1]} 22. Bd2 {[%clk 0:02:14.6]}
22... Kh7 {[%clk 0:02:00.6]} 23. g3 {[%clk 0:02:12.2]} 23... f4 {[%clk
0:01:59.9]} 24. Ng2 {[%clk 0:02:10.7]} 24... Bf5 {[%clk 0:01:55.7]} 25. Qe2
{[%clk 0:02:10.3]} 25... fxg3 {[%clk 0:01:51.6]} 26. hxg3 {[%clk 0:02:05.3]}
26... Qe7 {[%clk 0:01:49.6]} 27. Bxg5 {[%clk 0:02:01.2]} 27... Qxg5 {[%clk
0:01:49.4]} 28. Ne3 {[%clk 0:02:01.1]} 28... Bd7 {[%clk 0:01:46.1]} 29. a5
{[%clk 0:02:00.9]} 29... Rc7 {[%clk 0:01:29.8]} 30. axb6 {[%clk 0:01:59.2]}
30... axb6 {[%clk 0:01:29.5]} 31. Rda1 {[%clk 0:01:58.4]} 31... h5 {[%clk
0:01:25.1]} 32. Ra7 {[%clk 0:01:55.7]} 32... Rdc8 {[%clk 0:01:24.6]} 33. Qf3
{[%clk 0:01:54.3]} 33... Qe7 {[%clk 0:01:13.9]} 34. Rxc7 {[%clk 0:01:48]} 34...
Rxc7 {[%clk 0:01:13.7]} 35. Ra8 {[%clk 0:01:48.6]} 35... Rc8 {[%clk 0:01:12.7]}
36. Ra7 {[%clk 0:01:48.2]} 36... Rd8 {[%clk 0:01:05.9]} 37. Ng2 {[%clk
0:01:41.3]} 37... e4 {[%clk 0:01:00]} 38. Qf4 {[%clk 0:01:33.5]} 38... g5 {[%clk
0:00:59.7]} 39. Qe3 {[%clk 0:01:27.7]} 39... Kg6 {[%clk 0:00:59.7]} 40. Qxb6
{[%clk 0:01:26.6]} 40... Rf8 {[%clk 0:00:56.4]} 41. c5 {[%clk 0:01:24.2]} 41...
e3 {[%clk 0:00:42.8]} 42. Nxe3 {[%clk 0:01:20.2]} 42... h4 {[%clk 0:00:22.1]}
43. Qxd6+ {[%clk 0:01:17.1]} 43... Qxd6 {[%clk 0:00:20.8]} 44. cxd6 {[%clk
0:01:18]} 44... Rf7 {[%clk 0:00:17.9]} 45. Nc4 {[%clk 0:01:15.5]} 45... hxg3
{[%clk 0:00:16.3]} 46. fxg3 {[%clk 0:01:14.4]} 46... Kf6 {[%clk 0:00:16.8]} 47.
Nb6 {[%clk 0:01:14.5]} 47... Bf5 {[%clk 0:00:16.1]} 48. Rxf7+ {[%clk 0:01:14]}
48... Kxf7 {[%clk 0:00:16.4]} 49. Kf2 {[%clk 0:01:12.2]} 49... Be4 {[%clk
0:00:16]} 50. Ke3 {[%clk 0:01:12.2]} 50... Bc2 {[%clk 0:00:16.2]} 51. b4 {[%clk
0:01:12.4]} 51... Kf6 {[%clk 0:00:16.4]} 52. Kd4 {[%clk 0:01:11.9]} 52... Kf7
{[%clk 0:00:16.1]} 53. Ke5 {[%clk 0:01:12]} 53... g4 {[%clk 0:00:15.7]} 54. Nd7
{[%clk 0:01:09]} 1-0

[Event "*** Titled Tuesday Blitz"]
[Site "Chess.com"]
[Date "2020.04.14"]
[Round "7"]
[White "Colombiano07"]
[Black "malandragem"]
[Result "0-1"]
[WhiteElo "2308"]
[BlackElo "2514"]
[TimeControl "180+1"]
[EndTime "11:13:48 PDT"]
[Termination "malandragem won by checkmate"]

1. c4 {[%clk 0:03:00.9]} 1... c5 {[%clk 0:02:59.5]} 2. e3 {[%clk 0:02:59.3]}
2... e6 {[%clk 0:02:40.5]} 3. Ne2 {[%clk 0:02:58.6]} 3... d5 {[%clk 0:02:40.3]}
4. cxd5 {[%clk 0:02:55.8]} 4... exd5 {[%clk 0:02:41.2]} 5. g3 {[%clk 0:02:55.1]}
5... Nc6 {[%clk 0:02:36.8]} 6. Bg2 {[%clk 0:02:55.5]} 6... Nf6 {[%clk
0:02:36.9]} 7. d4 {[%clk 0:02:55.4]} 7... h5 {[%clk 0:02:23.8]} 8. h3 {[%clk
0:02:52.9]} 8... Bf5 {[%clk 0:02:23.3]} 9. Nbc3 {[%clk 0:02:47.5]} 9... Qd7
{[%clk 0:02:23.6]} 10. dxc5 {[%clk 0:02:39.5]} 10... O-O-O {[%clk 0:02:14.7]}
11. Nd4 {[%clk 0:02:38.7]} 11... Bxc5 {[%clk 0:02:13.7]} 12. Nxf5 {[%clk
0:02:36.6]} 12... Qxf5 {[%clk 0:02:14]} 13. Qa4 {[%clk 0:01:55]} 13... d4 {[%clk
0:02:09.6]} 14. Bxc6 {[%clk 0:01:54.3]} 14... dxe3 {[%clk 0:01:54.7]} 15. O-O
{[%clk 0:01:28.6]} 15... Qxh3 {[%clk 0:01:45.9]} 16. Bg2 {[%clk 0:01:12.4]}
16... exf2+ {[%clk 0:01:46.1]} 17. Rxf2 {[%clk 0:01:10]} 17... Qxg3 {[%clk
0:01:46.6]} 18. Qf4 {[%clk 0:01:01.6]} 18... Bxf2+ {[%clk 0:01:41.6]} 19. Qxf2
{[%clk 0:01:02.5]} 19... Qxf2+ {[%clk 0:01:40.7]} 20. Kxf2 {[%clk 0:01:03.4]}
20... Ng4+ {[%clk 0:01:28.3]} 21. Kg1 {[%clk 0:00:57.9]} 21... f6 {[%clk
0:01:27.8]} 22. Bf4 {[%clk 0:00:54.3]} 22... g5 {[%clk 0:01:25.4]} 23. Bg3
{[%clk 0:00:53.3]} 23... h4 {[%clk 0:01:25.9]} 24. Bh3 {[%clk 0:00:46]} 24... f5
{[%clk 0:01:26.3]} 25. Bxg4 {[%clk 0:00:33]} 25... fxg4 {[%clk 0:01:27.2]} 26.
Be5 {[%clk 0:00:33.2]} 26... Rhf8 {[%clk 0:01:14.1]} 27. Rc1 {[%clk 0:00:31]}
27... b6 {[%clk 0:01:09.6]} 28. Nb5+ {[%clk 0:00:28]} 28... Kb7 {[%clk
0:01:07.5]} 29. Rc7+ {[%clk 0:00:25.6]} 29... Ka6 {[%clk 0:01:07.9]} 30. a4
{[%clk 0:00:26]} 30... Rd1+ {[%clk 0:00:52.9]} 31. Kg2 {[%clk 0:00:24.3]} 31...
h3+ {[%clk 0:00:33.3]} 32. Kh2 {[%clk 0:00:06.3]} 32... Rf2+ {[%clk 0:00:26.4]}
33. Kg3 {[%clk 0:00:06.7]} 33... Rg2# {[%clk 0:00:27.3]} 0-1